Cogmind - Beta 9.4 @@@ ROGUE MODE // 2020.02.02 @ 19:35:43 Player: Human Yoyo Result: Destroyed by S-27 Virus with Autogun Performance ------------- Evolutions (3) 1500 Regions Visited (4) 800 Robots Destroyed (30) 150 Value Destroyed (708) 708 Prototype IDs (1) 20 Alien Tech Used (0) 0 Bonus (0) 0 TOTAL SCORE: 3178 Bonus ------- None Cogmind --------- Core Integrity 0/700 Matter 300/300 Energy 100/100 System Corruption 0% Temperature Cool (12) Movement Core (300) Ox5 Location -7/Factory Parts ------- > --- POWER (2) -------- (None) > --- PROPULSION (4) --- (None) > --- UTILITY (5) ------ Large Storage Unit Visual Processing Unit > --- WEAPON (2) ------- (None) > --- INVENTORY (10) --- Light Deuterium Engine Flight Unit Shock Rifle Particle Gun Grenade Launcher Plasma Cutter Peak State ------------ > --- POWER ------------ Light Nuclear Core Light Angular Momentum Engine > --- PROPULSION ------- Improved Hover Unit Gravmag System Cesium-ion Thruster Xenon Bombardment Thruster > --- UTILITY ---------- Large Storage Unit Visual Processing Unit Improved Sensor Array > --- WEAPON ----------- Assault Rifle Heavy Assault Rifle > --- INVENTORY -------- Light Deuterium Engine Flight Unit Shock Rifle Particle Gun Grenade Launcher Plasma Cutter [Rating: 30] Favorites ----------- Power Ion Engine Engine Ion Engine Power Core Light Nuclear Core Propulsion Advanced Treads Treads Advanced Treads Hover Unit Improved Hover Unit Flight Unit Flight Unit Utility Large Storage Unit Device Tractor Beam Storage Large Storage Unit Processor Visual Processing Unit Protection Light Armor Plating Weapon Assault Rifle Ballistic Gun Assault Rifle Special Weapon Plasma Cutter Build | -11 -10 -9 -8 -7 ------- Run | Scr Mat Mat Mat Fac Slots Evolved 6 | . . 2 2 2 Power 1 | . . . . 1 Propulsion 2 | . . 2 . . Utility 3 | . . . 2 1 Weapon . | . . . . . Parts Attached 69 | 7 11 23 14 14 Power 9 | 1 1 1 4 2 Engine 7 | 1 1 1 2 2 Core 2 | . . . 2 . Reactor . | . . . . . Propulsion 33 | 2 6 16 4 5 Treads 15 | 2 4 9 . . Leg . | . . . . . Wheel . | . . . . . Hover 8 | . 1 1 4 2 Flight 10 | . 1 6 . 3 Utility 16 | 2 2 5 6 1 Device 9 | 1 2 1 4 1 Storage 3 | 1 . 2 . . Processor 2 | . . . 2 . Hackware . | . . . . . Protection 2 | . . 2 . . Artifact . | . . . . . Weapon 11 | 2 2 1 . 6 Energy Gun . | . . . . . Energy Cannon . | . . . . . Ballistic Gun 8 | 2 2 1 . 3 Ballistic Cannon . | . . . . . Launcher . | . . . . . Special Weapon 3 | . . . . 3 Impact Weapon . | . . . . . Slashing Weapon . | . . . . . Piercing Weapon . | . . . . . Special Melee Weapon . | . . . . . Unidentified Prototypes 1 | . . 1 . . Parts Lost 24 | . . 4 4 16 Power 3 | . . . 1 2 Propulsion 9 | . . 2 . 7 Utility 6 | . . 1 2 3 Weapon 6 | . . 1 1 4 Highest Loss Streak 9 | . . 2 3 9 Average Slot Usage (%) 91 | . 96 91 95 79 Engine 10 | . 14 11 7 6 Core 1 | . . . 1 6 Treads 24 | . 27 28 31 . Hover 5 | . . 4 3 17 Flight 3 | . . 6 . 5 Device 9 | . 12 6 11 10 Storage 10 | . 14 11 9 7 Processor 2 | . . . 4 7 Protection 3 | . . 2 9 2 Ballistic Gun 19 | . 27 20 16 6 Special Weapon 1 | . . . . 6 Naked Turns . | . . . . . Heaviest Build 36 | 13 13 31 32 36 Greatest Support 89 | 40 40 89 88 32 Greatest Overweight (x) 8 | . 2 2 1 8 Average Overweight (x) . | . . . . 1 Largest Inventory Capacity 10 | 6 6 10 10 10 Average Capacity 8 | 4 6 8 10 10 Most Carried 10 | 4 6 10 10 9 Average Carried 4 | . 1 5 7 5 Final Capacity 10 | 6 6 10 10 10 Final Carried 8 | . 4 7 8 6 Class Distribution -------------------- 75% | Mutant 20% | Scavenger-Mutant Dominant Class ---------------- Mutant | -10/Materials Mutant | -9/Materials Mutant | -8/Materials Scavenger-Mutant | -7/Factory Resources | -11 -10 -9 -8 -7 ----------- Run | Scr Mat Mat Mat Fac Matter Collected 1258 | 274 103 480 267 134 Remotely 416 | 186 103 127 . . Salvage Created 1179 | 88 34 521 307 229 Parts 67 | 1 2 33 17 14 Haulers Intercepted . | . . . . . Recyclers Shooed 3 | . . 1 2 . Parts Field Recycled . | . . . . . Retrieved Matter . | . . . . . Parts Self-Destructed . | . . . . . Prevented . | . . . . . Kills | -11 -10 -9 -8 -7 ------- Run | Scr Mat Mat Mat Fac Combat Hostiles Destroyed 22 | . 1 14 3 4 Guns 20 | . 1 14 3 2 Cannons 2 | . . . . 2 Classes Destroyed 7 | 1 1 4 . 1 Worker 1 | . . 1 . . Recycler 4 | 1 . 2 1 . Watcher 3 | . . 1 2 . Swarmer 10 | . . 10 . . Grunt 7 | . 1 3 . 3 Sentry 4 | . . 1 3 . Programmer 1 | . . . . 1 Best Kill Streak 4 | 1 1 4 2 3 Combat Bots Only 4 | . 1 4 1 3 Max Kills in Single Turn 1 | 1 1 1 1 1 Gunslinging . | . . . . . Exploded . | . . . . . Melee . | . . . . . Uniques/NPCs Destroyed . | . . . . . Combat | -11 -10 -9 -8 -7 -------- Run | Scr Mat Mat Mat Fac Damage Taken 2719 | . 106 588 464 1561 Core 884 | . 43 83 44 714 Absorbed by Shields 95 | . . . . 95 Core Remaining (%) 88 | 100 82 79 92 . Volleys Fired 119 | 1 9 60 30 19 Largest 2 | 2 2 2 2 2 Hottest 43 | 40 40 43 43 43 Shots Fired 214 | 2 18 111 50 33 Gun 192 | 2 18 111 50 11 Cannon . | . . . . . Launcher . | . . . . . Special 22 | . . . . 22 Kinetic 192 | 2 18 111 50 11 Thermal 22 | . . . . 22 Explosive . | . . . . . Electromagnetic . | . . . . . Robot Hit Streak 15 | 2 5 11 15 10 Robot Miss Streak 6 | . 5 6 3 4 Penetration Max . | . . . . . Secondary Targets 2 | . . 2 . . Max Gunslinging Chain 1 | . . 1 . . Shots Hit Robots 135 | 2 9 66 39 19 Core Hits 53 | 2 2 27 11 11 Critical Hits 4 | . . . 3 1 Critical Kills 1 | . . . 1 . Critical Parts Destroyed 3 | . . . 2 1 Melee Attacks . | . . . . . Impact . | . . . . . Slashing . | . . . . . Piercing . | . . . . . Sneak Attacks . | . . . . . Combat Hostiles . | . . . . . Follow-up Attacks . | . . . . . Damage Inflicted 1575 | 24 63 728 482 278 Guns 1401 | 24 63 728 482 104 Cannons . | . . . . . Explosions . | . . . . . Melee . | . . . . . Ramming . | . . . . . Kinetic 1401 | 24 63 728 482 104 Thermal 174 | . . . . 174 Explosive . | . . . . . Electromagnetic . | . . . . . Impact . | . . . . . Slashing . | . . . . . Piercing . | . . . . . Highest Corruption . | . . . . . Average Corruption . | . . . . . Corruption Purged . | . . . . . Overload Shots . | . . . . . Overflow Damage . | . . . . . Projectiles . | . . . . . Explosions . | . . . . . Melee . | . . . . . Knockbacks . | . . . . . Impact . | . . . . . Kinetic . | . . . . . Secondary . | . . . . . Self-Inflicted Damage . | . . . . . Shots . | . . . . . Rammed 1 | . 1 . . . Targets Rammed 1 | . 1 . . . Kicked . | . . . . . Crushed . | . . . . . Highest Temperature 20 | . 6 12 9 20 Average Temperature 4 | . 6 3 1 11 Received Heat Transfer 567 | . 60 102 144 261 Siege Activations . | . . . . . Robots Corrupted . | . . . . . Combat Hostiles . | . . . . . Parts Fried . | . . . . . Impact Corruptions . | . . . . . Robots Melted . | . . . . . Combat Hostiles . | . . . . . Parts Melted 4 | . . . . 4 Heat Transferred 592 | . . . . 592 Parts Sabotaged . | . . . . . Parts Stolen . | . . . . . Parts Stripped . | . . . . . Power Chain Reactions . | . . . . . Missiles Intercepted . | . . . . . Alert | -11 -10 -9 -8 -7 ------- Run | Scr Mat Mat Mat Fac Peak Influence 240 | 5 30 240 140 82 Average Influence 63 | 3 7 112 66 41 Maximum Alert Level 1 | . . 1 . . Low Security (%) 90 | 100 100 75 100 100 Level 1 9 | . . 24 . . Level 2 . | . . . . . Level 3 . | . . . . . Level 4 . | . . . . . Level 5 . | . . . . . High Security . | . . . . . Max Security . | . . . . . Squads Dispatched 6 | . 4 1 . 1 Investigation 3 | . 3 . . . Extermination . | . . . . . Reinforcement 3 | . 1 1 . 1 Assault . | . . . . . Garrison . | . . . . . Intercept . | . . . . . Construction Impeded . | . . . . . Haulers Reinforced . | . . . . . Stealth | -11 -10 -9 -8 -7 --------- Run | Scr Mat Mat Mat Fac Distress Signals 3 | . 2 . 1 . Communications Jammed . | . . . . . Distress Signals . | . . . . . Times Spotted 50 | . 2 23 14 11 Peak Tracking Total 7 | . 2 5 7 6 Tactical Retreats 3 | . . 3 . . Traps | -11 -10 -9 -8 -7 ------- Run | Scr Mat Mat Mat Fac Traps Triggered 3 | . 3 . . . Indirectly . | . . . . . Trap Hack Attempts . | . . . . . Triggered . | . . . . . Disarmed . | . . . . . Reprogrammed . | . . . . . Reused . | . . . . . Traps Extracted . | . . . . . Installed . | . . . . . Triggered . | . . . . . Machines | -11 -10 -9 -8 -7 ---------- Run | Scr Mat Mat Mat Fac Machines Disabled . | . . . . . Max in Single Turn . | . . . . . Machines Sabotaged . | . . . . . Garrisons Compromised . | . . . . . Overloaded Fab Kills . | . . . . . Fab Network Shutdowns . | . . . . . Hacking | -11 -10 -9 -8 -7 --------- Run | Scr Mat Mat Mat Fac Machines Accessed 5 | . 4 1 . . Terminals 2 | . 2 . . . Fabricators . | . . . . . Repair Stations 2 | . 1 1 . . Recycling Units 1 | . 1 . . . Scanalyzers . | . . . . . Garrison Access . | . . . . . Total Hacks 17 | . 13 4 . . Successful 9 | . 6 3 . . Failed 8 | . 7 1 . . Catastrophic 2 | . 2 . . . Database Lockouts . | . . . . . Manual . | . . . . . Terminals 6 | . 6 . . . Fabricators . | . . . . . Repair Stations 7 | . 3 4 . . Recycling Units 4 | . 4 . . . Scanalyzers . | . . . . . Garrison Access . | . . . . . Terminal Hacks 1 | . 1 . . . Locate Traps 1 | . 1 . . . Fabricator Hacks . | . . . . . Repair Station Hacks 5 | . 2 3 . . Scan Component 2 | . 1 1 . . Repair 2 | . 1 1 . . Refit 1 | . . 1 . . Recycling Unit Hacks 3 | . 3 . . . Process 1 | . 1 . . . Report Inventory 1 | . 1 . . . Retrieve Components 1 | . 1 . . . Scanalyzer . | . . . . . Garrison Access Hacks . | . . . . . Unauthorized Hacks . | . . . . . Terminals . | . . . . . Fabricators . | . . . . . Repair Stations . | . . . . . Recycling Units . | . . . . . Scanalyzers . | . . . . . Garrison Access . | . . . . . Data Cores Recovered . | . . . . . Used . | . . . . . Hacking Detections 5 | . 4 1 . . Full Trace Events 2 | . 2 . . . Feedback Events . | . . . . . Feedback Blocked . | . . . . . Robot Schematics Acquired . | . . . . . Robots Built . | . . . . . Matter . | . . . . . Time . | . . . . . Total Robot Build Rating . | . . . . . Part Schematics Acquired . | . . . . . Parts Built . | . . . . . Matter . | . . . . . Time . | . . . . . Total Part Build Rating . | . . . . . Parts Repaired 2 | . 1 1 . . Time 52 | . 26 26 . . Parts Recycled . | . . . . . Recycled Matter 8 | . 8 . . . Retrieved Matter . | . . . . . Retrieved Components . | . . . . . Parts Scanalyzed . | . . . . . Part Schematics Acquired . | . . . . . Parts Damaged . | . . . . . Bothacking | -11 -10 -9 -8 -7 ------------ Run | Scr Mat Mat Mat Fac Used RIF Installer . | . . . . . Robots Hacked . | . . . . . Non-combat . | . . . . . Combat . | . . . . . Robot Hacks Applied . | . . . . . Relay Couplers Released . | . . . . . Robots Rewired . | . . . . . Allies Hacked . | . . . . . Hacks Repelled . | . . . . . Allies | -11 -10 -9 -8 -7 -------- Run | Scr Mat Mat Mat Fac Total Allies . | . . . . . Largest Group . | . . . . . Highest-Rated Group . | . . . . . Highest-Rated Ally . | . . . . . Total Orders . | . . . . . Ally Attacks . | . . . . . Total Damage . | . . . . . Kills . | . . . . . Allies Corrupted . | . . . . . Allies Melted . | . . . . . Intel | -11 -10 -9 -8 -7 ------- Run | Scr Mat Mat Mat Fac Robot Analysis Total . | . . . . . Derelict Logs Recovered . | . . . . . Drone Launches . | . . . . . Drone Recoveries . | . . . . . Exploration | -11 -10 -9 -8 -7 ------------- Run | Scr Mat Mat Mat Fac Turns Passed 2439 | 70 599 885 507 378 Spaces Moved 1303 | 42 344 460 262 195 Core 18 | 12 4 . . 2 Treads 926 | 30 337 345 214 . Legs . | . . . . . Wheels . | . . . . . Hover 266 | . 3 22 48 193 Flight 93 | . . 93 . . Fastest Speed 29 | 50 100 29 48 108 Average Speed 139 | 128 159 137 127 128 Slowest Speed 450 | 160 180 260 145 450 Overloaded Moves . | . . . . . Propulsion Burnouts . | . . . . . Robots Hopped 1 | . . 1 . . Cave-ins Triggered . | . . . . . Exploration Rate (%) 22 | 5 50 29 20 7 Regions Visited 4 Branch Regions . Pre-discovered Areas . | . . . . . Known Exits Taken . | . . . . . Unknown Exits Taken 4 | 1 1 1 1 . Scrap Searched . | . . . . . Spaces Dug . | . . . . . Terrain Destroyed . | . . . . . Melee . | . . . . . Projectile . | . . . . . AOE . | . . . . . Actions | -11 -10 -9 -8 -7 --------- Run | Scr Mat Mat Mat Fac Total 1702 | 56 376 614 386 270 Wait 117 | . . 34 59 24 Move 1297 | 41 343 457 261 195 Hop 1 | . . 1 . . Pick Up 65 | 7 10 23 14 11 Fast Attach 2 | . 1 1 . . Attach 55 | 7 8 17 11 12 Detach 5 | . 2 1 . 2 Swap 12 | . 2 5 3 2 Drop 28 | . . 15 8 5 Fire 119 | 1 9 60 30 19 Melee . | . . . . . Ram . | . . . . . Kick . | . . . . . Crush 1 | . 1 . . . Escape Stasis . | . . . . . Rewire . | . . . . . Trap . | . . . . . Miscellaneous . | . . . . . Route ------- -11/Scrapyard -10/Materials -9/Materials (discovered 2 exits: [*Mat] / [*Sto]) -8/Materials -7/Factory History --------- Turn | Location | Event 19 | -11/Scrapyard | Discovered new exit (range 15) 71 | -11/Scrapyard | Entered Materials 198 | -10/Materials | Repaired Tractor Beam? 311 | -10/Materials | Build established: Mutant 604 | -10/Materials | Discovered new exit (range 8) 670 | -10/Materials | Entered another Materials area 670 | -9/Materials | Evolved 2 slots: Propulsion x2 719 | -9/Materials | Repaired Lgt. Treads 782 | -9/Materials | Discovered new exit (range 4) 1165 | -9/Materials | Discovered new exit (range 13) 1555 | -9/Materials | Entered another Materials area 1555 | -8/Materials | Evolved 2 slots: Utility x2 2008 | -8/Materials | Lost 3 parts (1p1u1w) 2044 | -8/Materials | Discovered new exit (range 3) 2062 | -8/Materials | Entered Factory 2062 | -7/Factory | Evolved 2 slots: Power x1, Utility x1 2267 | -7/Factory | Lost 7 parts (3n2u2w) 2300 | -7/Factory | Build established: Scavenger-Mutant 2427 | -7/Factory | Core integrity fell below 50% 2437 | -7/Factory | Core integrity fell below 20% 2440 | -7/Factory | Destroyed by S-27 Virus with Autogun Last Messages --------------- 02326_ Acquired Shock Rifle. 02327_ Acquired 10 matter. 02329_ Acquired Lgt. Angular Momentum Engine. 02331_ R-06 Scavenger collects Imp. Heat Sink. 02332_ Acquired 10 matter. 02357_ Acquired Xenon Bombardment Thruster. 02405_ Nuclear Reactor explodes. 02405_ Imp. Hover Unit destroyed. 02405_ Xenon Bombardment Thruster destroyed. 02405_ Lgt. Angular Momentum Engine destroyed. 02407_ Lgt. Nuclear Core destroyed. 02409_ Nuclear Reactor explodes. 02414_ Hvy. Assault Rifle destroyed. 02414_ Assault Rifle destroyed. 02415_ Gravmag System destroyed. 02416_ The unstable cave ceiling collapses. 02418_ Cesium-ion Thruster destroyed. 02421_ The unstable cave ceiling collapses. 02425_ Imp. Sensor Array destroyed. 02427_ The unstable cave ceiling collapses. Map ----- +----------------------------------------------------+ | ?????????????????????????????????????????????????? | | ?????????????????????????????????????????????????? | | ?????????????????????????????????????????????????? | | ?????????????????????????????????????????????????? | | ?????????????????????????????????????????????????? | | ?????????????????????????????????????????????????? | | ?????????????????????????????????????????????????? | | ?????????????????????????????????????????????????? | | ?????????????????????????""??????????????????????? | | ?????????????????????????""??????????????????????? | | ????????????????????????? ?????????????????????? | | ????????????????????????? ?????????????????????? | | ??????????????????????###+#+?????????######??????? | | ?????????????????????? ????????? #??????? | | ??????????????????????# ?? ??? #??????? | | ??????????????????????# ?? ??? ?""" #??????? | | ???????????######?##### ?? ""? ""F" #??????? | | ?????????### ## # # ?? """^"" #??????? | | ?????????# # #### #??????? | | ?????????# # """ """ #??????? | | ????????## "" # """ """ #??????? | | ????????# # """ # """ """ #??????? | | ?????????# ss R" # ^ #??????? | | ????????# ] ss""" # """ """ #######? | | ?????????# ] ] Y "" # """ """ # #? | | ?????????# @ # """ """ # ! #? | | ??????????## # # +### # #? | | ????????u """ """ # "" ## | | ???????? """ """ # "" # | | ????????? """ """ # """ # | | ????????? + """ # | | ????????? r # """ # | | ??????????###### ################ # # | | ???????????????# ???????????????# # # | | ???????????????# ???????????????# # # | | ???????????????# ????????????????# # # | | ?????????????? ????????????????# ####### | | ?????????????### ?????????????????# #?????# | | ???????????????# ?????????????????# #?????# | | ???????????????###??????????????????# #?????# | | ????????????????????????????????????# ######## | | ????????????????????????????????????# %% | | ????????????????????????????????????# " | | ????????????????????????????????????# | | ????????????????????????????????????# | | ????????????????????????????????????# | | ????????????????????????????????????#### ######### | | ???????????????????????????????????????# #??????# | | ???????????????????????????????????????# #??????#! | | ???????????????????????????????????????# #??????# | +----------------------------------------------------+ Best States ------------- Heat Dissipation 34 Energy Generation 27 Energy Capacity 265 Matter Stores 300 Matter Capacity 300 Sight Range 18 Robot Scan Range 13 Terrain Scan Range 20 Terrain Scan Density 10 Additional Mass Support 9 Armor Coverage 150 Evasion (%) 64 Target Analysis 5 Recoil Reduction 4 Item Schematics ----------------- None Robot Schematics ------------------ None Fabricated ------------ Nothing Alien Tech Used ----------------- None Achievements -------------- Use The Force Challenges ------------ None Game ------ Seed CoordinationFortressClaws Manual? 0 Play Time 00:28:36 Cumulative 6.5 hours Start 2020.02.02 @ 19:08:10 End 2020.02.02 @ 19:35:43 Sessions 1 Manual Loads 0 Difficulty Rogue Special Mode None Game No. 8 Rogue 8 Adventurer 0 Explorer 0 Win Type - Total 0 Types 0/0/0/0/0/0/0 Lore% 2 Gallery% 15 Achievement% 9 Wizard Run 0 Options --------- ASCII 0 Keyboard 0 Movement Mouse Keybinds 0 Fullscreen 1 Font 18/SmallcapsGlow Map View 76x50 Tactical HUD 1 Map Filters NONE Filters NONE Steam 1 RUN: 1742cc4d-fb24-46f1-850b-98114fd3e88b